bitfinex-derivatives/quotes_ETHF0:USTF0_20250126
["timestamp","ask_amount","ask_price","bid_price","bid_amount"]
[1737866299597,1.1329,3357.1,3356.8,1.0392]
[1737866299598,0.59593,3356.9,3356.8,1.0392]
[1737866300397,1.1329,3357.1,3356.6,3.2078]
[1737866300698,1.65876,3356.8,3356.6,3.2078]
[1737866301891,1.0628,3356.8,3356.6,3.2078]
[1737866302291,0.59592,3357.0,3356.6,3.80378]
[1737866302699,0.021,3356.9,3356.6,3.80378]
[1737866302890,0.021,3356.9,3356.6,3.2078]
[1737866303096,0.021,3356.9,3356.8,0.59595]
[1737866305693,3.2078,3357.2,3356.6,5.22873987]
[1737866305895,3.2078,3357.2,3357.1,0.59589]
[1737866307904,3.2078,3357.2,3356.9,0.59592]
[1737866308093,3.2078,3357.2,3356.6,3.2078]
[1737866308502,3.2078,3357.2,3357.1,0.59589]
[1737866308702,3.2078,3357.6,3356.6,5.4690257]
[1737866308899,0.34684025,3357.5,3357.3,0.59586]
[1737866309100,0.59585,3357.4,3357.0,0.5959]
[1737866309701,0.34703703,3357.3,3357.0,0.5959]
[1737866310303,1.0114,3357.2,3357.0,0.5959]
[1737866310802,0.34709654,3357.1,3356.6,3.44808583]
[1737866311001,0.34710268,3357.1,3357.0,0.59591]
[1737866311203,4.2192,3357.2,3357.0,0.59591]
[1737866311204,1.0114,3357.2,3357.0,0.59591]
[1737866311403,2.61676987,3357.5,3357.1,0.59588]
[1737866311598,0.34704302,3357.4,3357.1,0.59588]
[1737866311797,0.34704302,3357.4,3356.6,3.44808583]
[1737866311798,0.94289302,3357.4,3357.2,2.1125]
[1737866311999,0.34704302,3357.3,3357.2,2.1125]
[1737866312297,0.94290302,3357.3,3356.9,0.59592]
[1737866312497,1.0153,3357.2,3356.9,0.59592]
[1737866312796,2.1042,3357.2,3356.9,0.59592]
[1737866314507,2.1042,3357.2,3357.0,0.59591]
[1737866314805,2.1042,3357.2,3356.6,3.44808583]
[1737866314999,0.59592,3357.0,3356.7,0.59596]
[1737866315405,0.59594,3356.9,3356.6,4.04406583]
[1737866315603,0.59594,3356.9,3356.6,0.24028583]
[1737866315802,0.59595,3356.8,3356.5,0.596]
[1737866316598,1.035,3357.1,3356.5,0.596]
[1737866316798,1.0888,3356.7,3356.4,0.2441989]
[1737866317006,0.596,3356.5,3356.2,6.99975]
[1737866317203,0.596,3356.5,3356.2,5.92775]
[1737866317404,0.59601,3356.5,3356.2,5.92775]
[1737866317704,0.59602,3356.5,3356.2,5.3317]
[1737866318101,0.59602,3356.5,3356.2,5.92775]
[1737866318502,1.0153,3356.6,3356.2,5.57474406]
[1737866318709,1.61129,3356.6,3356.3,0.59602]
[1737866319207,0.59601,3356.5,3356.3,0.59602]
[1737866319405,1.68011,3356.5,3356.3,0.59602]
[1737866319607,1.0841,3356.5,3356.3,0.59602]
[1737866320005,1.68011,3356.5,3356.3,0.59602]
[1737866320199,1.68011,3356.5,3355.8,3.2078]
[1737866320200,0.59611,3355.9,3355.8,3.2078]
[1737866320407,2.02093987,3355.9,3355.5,0.59617]
[1737866320600,0.00446768,3356.2,3355.3,5.22873987]
[1737866320805,0.00446768,3356.2,3356.1,0.59607]
[1737866321307,0.59591,3357.1,3356.8,0.59594]
[1737866321505,0.94283444,3357.0,3356.7,0.59596]
[1737866321705,0.59591,3357.0,3356.7,0.59596]
[1737866322306,0.59591,3357.0,3356.5,3.2078]
[1737866322307,0.59591,3357.0,3356.6,0.59597]
[1737866322513,0.34690352,3356.9,3356.7,0.59597]
[1737866322814,1.0559,3356.8,3356.7,0.59597]
[1737866323407,1.0559,3356.8,3356.5,3.21226768]
[1737866323613,1.0559,3356.8,3356.5,3.80825768]
[1737866323918,1.65185,3356.8,3356.5,3.80825768]
[1737866324110,1.65185,3356.8,3356.5,3.21226768]
[1737866324111,1.0559,3356.8,3356.5,3.21226768]
[1737866324712,0.59598,3356.6,3356.5,3.21226768]
[1737866325109,0.59598,3356.6,3356.5,0.00446768]
[1737866325416,3.80378,3356.6,3356.5,0.00446768]
[1737866325718,4.15081457,3356.6,3356.5,0.00446768]
[1737866330512,0.59614,3355.8,3355.5,0.59618]
[1737866330713,2.02093987,3355.7,3355.5,0.59618]
[1737866330909,3.03523987,3355.7,3355.5,0.59618]
[1737866331331,3.06103987,3356.0,3355.3,3.2078]
[1737866331520,4.67143987,3356.0,3355.7,0.59613]
[1737866333831,1.0351,3355.9,3355.7,0.59613]
[1737866335233,1.0351,3355.9,3355.3,3.2078]
[1737866335429,1.63121,3355.9,3355.6,0.59615]
[1737866336233,1.0351,3355.9,3355.7,0.59614]
[1737866337536,1.03304745,3355.9,3355.7,0.59614]
[1737866338939,1.03304745,3355.9,3355.8,1.0161]
[1737866340747,0.59613,3355.8,3355.5,0.59617]
[1737866340940,0.59616,3355.7,3355.4,1.61229]
[1737866341343,0.59617,3355.6,3355.4,1.61229]
[1737866342043,2.02093987,3355.7,3355.4,1.0161]
[1737866342249,1.03304745,3355.9,3355.4,1.0161]
[1737866342544,1.03304745,3355.9,3355.7,0.59613]
[1737866342939,1.03304745,3355.9,3355.8,0.59613]
[1737866343139,3.03523987,3356.0,3355.8,0.59613]
[1737866343342,3.03523987,3356.0,3355.9,1.0403]
[1737866344843,2.02093987,3356.0,3355.9,1.63641]
[1737866345049,2.02093987,3356.0,3355.9,1.0403]
[1737866345840,2.02093987,3356.0,3355.9,1.63641]
[1737866346043,2.02093987,3356.0,3355.9,1.0403]
[1737866346241,2.02093987,3356.0,3355.9,1.63641]
[1737866348955,3.2078,3356.1,3356.0,0.59609]
[1737866349144,3.2078,3356.1,3355.9,1.0403]
[1737866349353,3.2078,3356.1,3355.9,1.6364]
[1737866349549,3.2078,3356.1,3356.0,0.59609]
[1737866349952,3.2078,3356.1,3356.0,1.67919]
[1737866350454,5.82472987,3356.6,3356.4,0.59602]
[1737866350655,5.22873987,3356.6,3356.0,2.1916]
[1737866350854,0.59602,3356.5,3356.2,0.59604]
[1737866351155,0.59602,3356.5,3356.1,0.59606]
[1737866351156,0.59603,3356.4,3356.1,0.59606]
[1737866351457,2.02093987,3356.3,3356.0,1.0831]
[1737866351657,0.59609,3356.0,3355.7,0.59614]
[1737866351955,1.0515,3355.9,3355.7,0.59614]
[1737866352550,1.0515,3355.9,3355.6,1.0252]
[1737866352747,4.317,3356.2,3355.7,3.2078]
[1737866352748,3.2078,3356.2,3355.7,3.2078]
[1737866352945,2.02093987,3356.3,3355.7,3.2078]
[1737866353155,2.61697987,3356.3,3356.1,0.59607]
[1737866353350,1.0515,3356.2,3355.6,1.0252]
[1737866353550,1.64757,3356.2,3355.9,0.5961]
[1737866353750,1.64757,3356.2,3355.6,1.0252]
[1737866353751,0.94326746,3356.1,3355.6,1.0252]
[1737866353951,0.59608,3356.1,3355.9,0.5961]
[1737866354152,2.72046,3356.2,3356.0,0.59609]
[1737866354360,0.34719329,3356.1,3356.0,0.59609]
[1737866356946,0.34719329,3356.1,3355.6,1.0252]
[1737866357249,0.94327329,3356.1,3355.8,0.59612]
[1737866357447,0.34719329,3356.0,3355.6,1.0252]
[1737866357663,0.34719329,3356.0,3355.9,0.59611]
[1737866358158,0.34719329,3356.1,3355.9,0.59611]
[1737866358360,0.34719329,3356.1,3355.7,0.59614]
[1737866358571,0.34719329,3356.1,3355.9,0.5961]
[1737866359057,0.34719329,3356.1,3355.6,1.0252]
[1737866359261,0.34719329,3356.1,3356.0,0.59609]
[1737866359957,1.0515,3356.2,3355.7,3.2078]
[1737866360159,1.0515,3356.2,3356.1,0.59607]
[1737866360361,1.39896918,3356.2,3356.1,0.59607]
[1737866360555,0.34746918,3356.2,3356.1,0.59607]
[1737866360756,0.34746918,3356.2,3355.7,3.2078]
[1737866360757,2.02093987,3356.3,3356.2,0.59605]
[1737866360957,2.36841729,3356.3,3356.2,0.59605]
[1737866361359,1.0131,3356.4,3355.7,3.2078]
[1737866361562,1.099,3356.5,3356.4,0.59602]
[1737866361766,1.44642314,3356.5,3356.4,0.59602]
[1737866361962,1.099,3356.5,3356.4,0.59602]
[1737866364068,3.2078,3357.0,3356.9,0.59593]
[1737866365265,0.00446768,3357.2,3357.1,0.59589]
[1737866366163,3.2078,3357.5,3357.4,0.59584]
[1737866371365,3.2078,3357.5,3357.3,0.59585]
[1737866371566,3.2078,3357.5,3357.4,0.59584]
[1737866372370,5.82457987,3357.5,3357.2,0.59587]
[1737866372668,0.59585,3357.4,3357.1,0.60035768]
[1737866372868,0.59585,3357.4,3357.2,0.59588]
[1737866373172,5.22873987,3357.5,3357.1,0.00446768]
[1737866373371,2.61681987,3357.2,3357.1,0.00446768]
[1737866373566,2.9623587,3357.2,3357.1,0.00446768]
[1737866373968,0.596,3356.5,3356.4,3.2078]
[1737866375071,0.59605,3356.3,3355.9,0.59611]
[1737866375270,2.02093987,3356.0,3355.3,1.1138]
[1737866375470,1.0278,3355.9,3355.6,0.59616]
[1737866376177,1.62391,3355.9,3355.6,0.59616]
[1737866376374,1.0278,3355.9,3355.7,0.59614]
[1737866377578,1.0278,3355.9,3355.3,1.1138]
[1737866377776,1.0278,3355.9,3355.7,0.59613]
[1737866378082,1.0278,3355.9,3355.8,0.59613]
[1737866378778,1.0278,3355.9,3355.7,0.59613]
[1737866378976,0.00446768,3356.0,3355.9,0.59611]
[1737866379476,0.00446768,3356.0,3355.4,3.2078]
[1737866379675,0.00446768,3356.0,3355.7,0.59613]
[1737866379880,3.10610755,3356.0,3355.7,0.59613]
[1737866380077,0.59612,3355.9,3355.6,0.59616]
[1737866380882,3.10610755,3356.0,3355.4,3.2078]
[1737866380883,3.70220755,3356.0,3355.5,0.59618]
[1737866381076,3.70220755,3356.0,3355.4,3.2078]
[1737866381276,3.70220755,3356.0,3355.7,0.59614]
[1737866381478,0.59611,3355.9,3355.6,0.59616]
[1737866382280,0.59611,3355.9,3355.4,3.2078]
[1737866382281,1.1039,3355.9,3355.5,0.59618]
[1737866382482,1.1039,3355.9,3355.6,0.59614]
[1737866383482,1.70002,3355.9,3355.6,0.59614]
[1737866383681,1.70001,3355.9,3355.6,0.59616]
[1737866384385,3.2078,3355.7,3355.6,0.59616]
[1737866385978,1.1039,3355.9,3355.7,0.59613]
[1737866387284,1.1039,3355.9,3355.8,0.59613]
[1737866387988,3.10610755,3356.0,3355.4,3.2078]
[1737866388285,3.10610755,3356.0,3355.9,0.59611]
[1737866388586,0.00446768,3356.0,3355.9,0.59611]
[1737866392589,0.00446768,3356.0,3355.9,2.76071]
[1737866401882,2.1253,3356.7,3356.6,0.59598]
[1737866404295,2.1253,3356.7,3356.3,0.00446768]
[1737866404496,2.61695987,3356.4,3356.3,0.00446768]
[1737866404994,2.02093987,3356.4,3356.3,0.00446768]
[1737866405196,3.2078,3356.5,3356.3,0.00446768]
[1737866405498,3.2078,3356.5,3356.4,0.59602]
[1737866406197,3.2078,3356.5,3356.3,0.60049768]
[1737866406598,3.2078,3356.5,3356.4,0.59602]
[1737866406798,3.2078,3356.5,3356.3,0.00446768]
[1737866407299,3.2078,3356.5,3356.3,0.60049768]
[1737866408094,3.2078,3356.5,3356.3,0.00446768]
[1737866408299,3.80381,3356.5,3356.3,0.00446768]
[1737866408697,3.2078,3356.5,3356.3,0.00446768]
[1737866408900,0.59602,3356.4,3356.3,0.00446768]
[1737866412301,3.2078,3356.5,3356.3,0.00446768]
[1737866412497,3.80381,3356.5,3356.3,0.00446768]
[1737866413604,0.59602,3356.4,3356.3,0.00446768]
[1737866415002,3.8038,3356.5,3356.3,0.60050768]
[1737866415300,3.2078,3356.5,3356.4,0.59602]
[1737866416407,4.14623987,3356.7,3356.6,0.59598]
[1737866417202,2.1253,3356.7,3356.6,0.59598]
[1737866419004,1.0831,3356.7,3356.6,0.59598]
[1737866420405,3.21226768,3357.0,3356.4,1.30509665]
[1737866420712,3.21226768,3357.0,3356.9,0.59593]
[1737866423509,0.00446768,3357.0,3356.9,0.59593]
[1737866423713,0.00446768,3357.0,3356.9,1.66953]
[1737866424813,0.00446768,3357.0,3356.9,0.59593]
[1737866426213,0.00446768,3357.0,3356.8,3.80374]
[1737866426516,0.60038768,3357.0,3356.8,3.80374]
[1737866431518,0.00446768,3357.0,3356.9,0.59593]
[1737866431715,0.00446768,3357.0,3356.8,3.2078]
[1737866431917,0.00446768,3357.0,3356.8,3.80374]
[1737866435419,0.00446768,3357.0,3356.9,0.59593]
[1737866437113,0.00446768,3357.0,3356.9,1.66943]
[1737866437313,0.00446768,3357.0,3356.9,2.75013]
[1737866443623,3.2078,3358.1,3356.9,7.1542]
[1737866443821,0.34656332,3358.0,3357.9,0.59574]
[1737866444124,1.38446332,3358.0,3357.9,0.59574]
[1737866446432,1.38435965,3358.0,3357.9,0.59574]
[1737866447931,1.38435965,3358.0,3357.4,2.0902]
[1737866447932,1.98008965,3358.0,3357.8,0.59577]
[1737866448122,0.34646601,3357.9,3357.8,0.59577]
[1737866449518,1.63364,3358.0,3357.8,0.59577]
[1737866450521,0.34645329,3357.9,3357.8,0.59577]
[1737866451532,1.63364,3358.0,3357.8,0.59577]
[1737866452434,1.0379,3358.0,3357.8,0.59577]
[1737866452829,1.63364,3358.0,3357.8,0.59577]
[1737866453042,1.0379,3358.0,3357.9,0.59575]
[1737866453336,1.63364,3358.0,3357.8,0.59576]
[1737866453635,1.0379,3358.0,3357.5,1.0917]
[1737866453826,1.0379,3358.0,3357.8,0.59576]
[1737866454137,1.0379,3358.0,3357.5,1.0917]
[1737866454435,1.0379,3358.0,3357.9,0.59575]
[1737866454934,2.02093987,3359.5,3357.9,5.22873987]
[1737866455124,0.34616116,3359.4,3358.7,3.2078]
[1737866455325,2.1515,3359.6,3359.1,3.2078]
[1737866455641,8.80318,3360.0,3359.6,0.59544]
[1737866455829,0.34555848,3359.9,3359.6,0.59544]
[1737866456029,0.3455566,3359.9,3359.6,0.59544]
[1737866456431,0.3455566,3359.9,3359.5,0.00446768]
[1737866456432,9.2607,3360.0,3359.7,0.59543]
[1737866456739,9.85608,3360.0,3359.6,0.59545]
[1737866457542,9.2607,3360.0,3359.7,0.59542]
[1737866457732,9.2607,3360.0,3359.5,0.00446768]
[1737866458042,9.2607,3360.0,3359.9,0.5954]
[1737866458634,8.2078,3360.0,3359.9,0.5954]
[1737866463644,8.2078,3360.0,3359.6,2.1014]
[1737866463835,1.1204,3359.9,3359.6,2.69684]
[1737866464240,1.1204,3359.9,3359.6,2.1014]
[1737866464438,1.1204,3359.9,3359.7,0.59542]
[1737866465440,1.1204,3359.9,3359.8,0.59542]
[1737866465939,8.2078,3360.0,3359.9,0.5954]
[1737866466936,5.0,3360.0,3359.9,0.5954]
[1737866472548,5.0,3360.0,3359.6,2.1014]
[1737866472746,5.0,3360.0,3359.8,0.59541]
[1737866472942,5.0,3360.0,3359.9,0.5954]
[1737866476941,4.13084,3360.0,3359.9,0.5954]
[1737866477247,5.3039,3361.0,3359.9,3.2078]
[1737866477441,5.3039,3361.0,3360.2,3.50929987]
[1737866477642,5.3039,3361.0,3360.8,0.59523]
[1737866478650,7.32483987,3361.0,3360.3,2.174]
[1737866478846,0.59525,3360.8,3360.3,2.174]
[1737866479043,1.0988,3360.7,3360.5,0.59529]
[1737866483849,1.0988,3360.7,3360.6,0.59527]
[1737866484053,1.44400401,3360.7,3360.6,0.59527]
[1737866484447,0.59533,3360.3,3360.1,0.59535]
[1737866484656,1.44460401,3360.2,3360.1,0.59535]
[1737866484848,2.54290401,3360.2,3360.1,0.59535]
[1737866485248,3.13825401,3360.2,3359.9,0.59538]
[1737866485448,3.13825401,3360.2,3359.4,3.2078]
[1737866485449,1.42740401,3360.1,3360.0,0.59538]
[1737866485649,1.42740401,3360.1,3359.4,3.2078]
[1737866485650,1.42740401,3360.1,3359.9,0.59538]
[1737866485955,0.34520401,3360.0,3359.9,0.59538]
[1737866488759,1.0822,3360.1,3360.0,0.59538]
[1737866491654,1.0822,3360.1,3359.9,0.59539]
[1737866492059,1.0822,3360.1,3359.4,3.2078]
[1737866492250,0.59541,3359.9,3359.7,0.59543]
[1737866492857,0.59539,3360.0,3359.4,3.2078]
[1737866493064,0.59539,3360.0,3359.8,0.59541]
[1737866496855,0.34622758,3359.9,3359.8,0.59542]
[1737866500561,0.34622758,3359.9,3359.5,0.00446768]
[1737866500766,0.59545,3359.6,3359.5,0.00446768]
[1737866500954,0.94167758,3359.6,3359.5,0.00446768]
[1737866501759,2.06027758,3359.6,3359.5,0.00446768]
[1737866502862,6.46482758,3359.6,3358.1,3.51020987]
[1737866503057,0.59556,3359.0,3358.7,0.5956]
[1737866503363,2.49282758,3358.9,3358.7,0.5956]
[1737866503563,2.1466,3358.9,3358.7,0.5956]
[1737866506559,2.1466,3358.9,3358.5,0.00446768]
[1737866506560,2.1466,3358.9,3358.6,0.59562]
[1737866506760,2.74218,3358.9,3358.6,0.59562]
[1737866507572,2.74218,3358.9,3358.5,0.00446768]
[1737866507772,2.1466,3358.9,3358.7,0.59561]
[1737866511372,5.3544,3358.9,3358.7,0.59561]
[1737866512464,3.2078,3358.9,3358.5,0.00446768]
[1737866512663,3.2078,3358.9,3358.8,0.59559]
[1737866516469,3.2078,3358.9,3358.6,0.59562]
[1737866516470,3.80339,3358.9,3358.6,0.59562]
[1737866519067,3.80339,3358.9,3358.7,0.59561]
[1737866520072,3.2078,3358.9,3358.5,0.00446768]
[1737866520274,0.59563,3358.6,3358.5,0.00446768]
[1737866521374,2.61656987,3358.6,3358.5,0.00446768]
[1737866524784,0.59574,3358.0,3357.7,0.59578]
[1737866524981,1.1105,3357.9,3357.5,1.1103]
[1737866525171,1.70626,3357.9,3357.6,0.59581]
[1737866525368,1.70625,3357.9,3357.6,0.59581]
[1737866526477,0.59577,3357.8,3357.6,0.59581]
[1737866526674,1.70626,3357.9,3357.6,0.59581]
[1737866527169,1.70626,3357.9,3357.6,0.59579]
[1737866527371,1.70626,3357.9,3357.7,0.59579]
[1737866527970,1.0478,3357.8,3357.7,0.59579]
[1737866528167,1.0478,3357.8,3357.6,0.5958]
[1737866528775,4.1688,3357.7,3356.2,5.22873987]
[1737866528986,2.02093987,3357.3,3356.9,0.59591]
[1737866529171,1.0478,3357.2,3356.9,0.59591]
[1737866529679,2.1412,3357.2,3356.9,0.59591]
[1737866530779,1.04046768,3357.4,3356.7,0.00446768]
[1737866531074,0.00446768,3357.4,3357.3,0.59586]
[1737866533182,0.00446768,3357.4,3356.8,0.24348093]
[1737866533384,0.00446768,3357.4,3357.2,0.59586]
[1737866533684,0.00446768,3357.4,3357.3,1.0592]
[1737866534173,0.59591,3357.1,3356.9,1.0157]
[1737866534485,0.59594,3356.9,3356.7,1.03946768]
[1737866535181,0.59595,3356.8,3356.7,0.00446768]
[1737866535374,2.78965,3356.8,3356.7,0.00446768]
[1737866538587,2.78965,3356.8,3355.8,0.59611]
[1737866538588,0.59597,3356.7,3355.8,0.59611]
[1737866538784,0.59607,3356.1,3355.8,0.59611]
[1737866538995,2.02093987,3357.1,3355.9,2.02093987]
[1737866539289,2.02093987,3357.1,3356.8,0.59594]
[1737866539592,2.02093987,3357.1,3356.2,3.2078]
[1737866539593,0.5959,3357.1,3356.7,0.59596]
[1737866539978,2.02093987,3357.2,3356.8,1.034]
[1737866540188,0.59592,3357.0,3356.8,1.034]
[1737866542492,2.02093987,3357.2,3356.8,1.034]
[1737866542688,2.02093987,3356.9,3356.3,2.1383]
[1737866542895,2.02093987,3356.9,3356.3,3.24]
[1737866543186,0.59598,3356.7,3356.4,0.59602]
[1737866543590,0.59602,3356.5,3356.3,2.1722]
[1737866543793,0.59602,3356.4,3356.3,2.1722]
[1737866544291,3.2078,3356.4,3355.7,3.2078]
[1737866544489,0.59609,3356.0,3355.7,3.80393]
[1737866544989,2.02093987,3356.2,3355.7,3.2078]
[1737866545188,1.097,3356.3,3355.1,3.2078]
[1737866545189,0.59615,3355.7,3355.1,3.2078]
[1737866545387,0.59615,3355.7,3355.3,0.5962]
[1737866545596,0.59614,3355.8,3355.5,0.59617]
[1737866545988,2.02093987,3355.9,3355.4,0.59619]
[1737866546291,0.59614,3355.7,3355.3,0.59621]
[1737866546790,0.59613,3355.8,3355.4,0.59619]
[1737866547190,2.02093987,3355.9,3355.2,2.0428]
[1737866547391,0.59613,3355.8,3355.4,0.59619]
[1737866548694,0.59615,3355.7,3355.4,0.59619]
[1737866549687,0.59615,3355.7,3355.2,2.0428]
[1737866549893,0.59615,3355.7,3355.5,0.59618]
[1737866550389,2.02093987,3355.9,3355.5,0.59618]
[1737866550590,0.59613,3355.8,3355.5,0.59618]
[1737866550794,3.2078,3356.0,3355.2,2.0428]
[1737866550992,2.02093987,3356.2,3355.5,3.2078]
[1737866551198,1.097,3356.3,3356.1,0.59606]
[1737866551400,1.097,3356.3,3355.6,1.0684]
[1737866551596,1.69305,3356.3,3356.0,0.59608]
[1737866553900,1.69305,3356.3,3355.7,1.0576]
[1737866553901,1.097,3356.3,3356.1,0.59607]
[1737866555395,1.69304,3356.3,3356.0,0.59608]
[1737866556000,2.61694987,3356.5,3355.8,0.59613]
[1737866556300,2.61694987,3356.5,3355.7,1.0576]
[1737866556301,5.2579,3356.6,3356.4,0.59602]
[1737866556598,5.85389,3356.6,3356.3,0.59603]
[1737866558000,4.89289,3356.6,3356.3,0.59603]
[1737866558706,4.89289,3356.6,3356.4,0.59602]
[1737866558892,4.2969,3356.6,3356.4,0.59602]
[1737866559899,3.2078,3356.6,3356.5,0.596]
[1737866560495,3.2078,3356.6,3356.4,0.59601]
[1737866560695,3.2078,3356.6,3356.5,0.596]
[1737866563900,3.2078,3356.6,3355.9,1.0494]
[1737866564196,2.02093987,3356.5,3356.0,0.59609]
[1737866564400,4.16343987,3356.5,3355.9,1.64549]
[1737866564596,0.59605,3356.3,3355.9,1.64549]
[1737866564803,0.59606,3356.2,3355.9,1.64549]
[1737866565907,0.59606,3356.2,3356.0,0.59609]
[1737866566396,1.0396,3356.4,3355.9,1.0494]
[1737866566601,1.63563,3356.4,3356.1,0.59607]
[1737866566990,1.63563,3356.4,3356.2,1.0844]
[1737866569503,1.63563,3356.4,3356.2,1.68045]
[1737866572010,0.34690865,3356.3,3355.1,3.2078]
[1737866572193,3.2078,3355.9,3355.3,1.0973]
[1737866572510,1.0482,3355.8,3355.7,0.59614]
[1737866573097,1.0482,3355.8,3355.3,1.0973]
[1737866573303,1.0482,3355.8,3355.6,0.59615]
[1737866573604,1.0482,3355.8,3355.7,0.59614]
[1737866574400,1.1004,3355.9,3355.3,1.0973]
[1737866574606,1.1004,3355.9,3355.7,0.59613]
[1737866574907,1.1004,3355.9,3355.8,1.0861]
[1737866576010,0.00446768,3356.0,3355.9,0.59611]
[1737866576706,0.00446768,3356.0,3355.9,2.80741]
[1737866579606,0.00446768,3356.0,3355.9,9.82834987]
[1737866580015,0.00446768,3356.0,3355.9,10.06706467]
[1737866580514,0.00446768,3356.0,3355.9,9.82834987]
[1737866581509,1.68492,3357.0,3356.3,1.49008]
[1737866581510,1.089,3357.0,3356.3,1.49008]
[1737866581815,1.089,3357.0,3356.9,0.59593]
[1737866582502,1.69746,3357.3,3356.7,1.0519]
[1737866582706,2.21936768,3357.3,3357.2,0.59588]
[1737866583011,1.10606768,3357.3,3357.2,0.59588]
[1737866583212,1.10606768,3357.3,3356.7,2.168]
[1737866583513,1.10606768,3357.3,3357.0,0.5959]
[1737866583514,1.70193768,3357.3,3357.0,0.5959]
[1737866583702,0.59592,3357.0,3356.7,0.59596]
[1737866583901,3.13613987,3357.2,3356.6,3.21226768]
[1737866584100,1.1152,3357.2,3356.6,3.21226768]
[1737866584309,1.1152,3357.2,3357.1,0.59589]
[1737866584504,3.13613987,3357.2,3356.8,0.59594]
[1737866584703,3.73202987,3357.2,3356.9,0.59593]
[1737866584910,3.13613987,3357.2,3356.6,3.21226768]
[1737866585119,3.73201987,3357.2,3356.9,0.59592]
[1737866585618,0.59591,3357.1,3356.8,0.59594]
[1737866586613,0.59593,3357.0,3356.7,0.59596]
[1737866586917,1.0173,3356.9,3356.7,0.59596]
[1737866587312,1.0639,3356.8,3356.7,0.59596]
[1737866591321,1.1152,3357.2,3357.1,0.59589]
[1737866591521,2.53414003,3357.2,3357.1,0.59589]
[1737866592223,2.1878,3357.2,3357.1,0.59589]
[1737866593417,0.00446768,3357.3,3356.6,3.21226768]
[1737866593615,0.00446768,3357.3,3357.2,0.59588]
[1737866596625,0.00446768,3357.3,3357.1,0.59589]
[1737866596826,0.00446768,3357.3,3357.2,0.59588]
[1737866607033,2.1232,3358.0,3357.2,5.0]
[1737866607232,2.1232,3358.0,3357.9,0.59575]
[1737866608136,2.1232,3358.0,3357.6,3.2078]
[1737866608339,0.59575,3357.9,3357.7,0.59578]
[1737866608540,4.14413987,3358.0,3357.6,3.2078]
[1737866608729,0.59577,3357.9,3357.6,3.8036]
[1737866609231,4.14413987,3358.0,3357.6,3.8036]
[1737866609232,0.59578,3357.8,3357.6,3.8036]
[1737866609431,1.0733,3357.7,3357.6,3.8036]
[1737866613540,0.59582,3357.6,3357.3,0.59585]
[1737866614042,1.0968,3357.5,3357.4,0.59583]
[1737866615629,1.0968,3357.5,3357.3,0.59585]
[1737866615827,1.65374,3357.4,3357.2,0.59587]
[1737866616327,1.0579,3357.4,3357.2,0.59587]
[1737866618639,4.2657,3357.4,3357.2,0.59587]
[1737866620639,4.2657,3357.4,3356.9,1.1154]
[1737866620640,1.0579,3357.4,3357.3,0.59586]
[1737866621441,1.0579,3357.4,3357.2,0.59587]
[1737866622138,1.0579,3357.4,3356.9,1.1154]
[1737866622352,1.0579,3357.4,3357.3,0.59586]
[1737866623840,1.40466951,3357.4,3357.3,0.59586]
[1737866624345,1.40466951,3357.4,3356.9,1.1154]
[1737866624546,1.0579,3357.4,3357.3,0.59586]
[1737866624747,1.40467613,3357.4,3357.3,0.59586]
[1737866625040,6.633416,3357.4,3356.6,3.21226768]
[1737866625248,0.94263613,3357.3,3357.1,0.59589]
[1737866625441,0.34677613,3357.2,3357.1,0.59589]
[1737866625643,0.34677613,3357.3,3357.1,0.59589]
[1737866625835,0.34677613,3357.3,3357.2,0.59588]
[1737866629859,0.34677613,3357.3,3356.6,4.27256768]
[1737866630051,2.02093987,3357.1,3356.7,0.59597]
[1737866630249,1.37997613,3357.0,3356.9,0.59593]
[1737866630551,2.1186,3357.0,3356.9,0.59593]
[1737866633847,2.1186,3357.0,3356.6,4.27256768]
[1737866634247,2.1186,3357.0,3356.9,0.59593]
[1737866637956,2.1186,3357.0,3356.6,1.06476768]
[1737866638158,2.71451,3357.0,3356.8,0.59594]
[1737866638959,0.3467962,3356.9,3356.8,0.59594]
[1737866642457,0.3467962,3356.9,3356.6,1.06476768]
[1737866642650,3.2078,3356.7,3356.6,0.00446768]
[1737866642961,3.5545962,3356.7,3356.6,0.60044768]
[1737866645650,4.1505662,3356.7,3356.6,0.00446768]
[1737866646056,3.80377,3356.7,3356.6,0.00446768]
[1737866647162,4.15082489,3356.7,3356.6,0.00446768]
[1737866647363,3.80377,3356.7,3356.6,0.00446768]
[1737866647567,4.15079148,3356.7,3356.6,0.00446768]
[1737866648866,3.55482148,3356.7,3356.6,0.00446768]
[1737866649057,3.2078,3356.7,3356.6,0.00446768]
[1737866649859,3.80377,3356.7,3356.6,0.00446768]
[1737866650363,4.15075288,3356.7,3356.6,0.00446768]
[1737866650567,3.80377,3356.7,3356.6,0.00446768]
[1737866651064,4.1507532,3356.7,3356.6,0.00446768]
[1737866656967,0.59609,3356.0,3355.9,1.0693]
[1737866657261,0.59609,3356.0,3355.8,0.59612]
[1737866657566,1.1341,3355.9,3355.8,0.59612]
[1737866659162,1.1341,3355.9,3355.6,3.1931]
[1737866659163,0.59614,3355.8,3355.6,3.78925]
[1737866659467,2.61707987,3355.8,3355.6,3.78925]
[1737866660170,2.02093987,3355.8,3355.6,3.78925]
[1737866660774,2.02093987,3355.8,3355.6,3.1931]
[1737866661074,2.02093987,3355.8,3355.7,0.59614]
[1737866663466,2.61706987,3355.8,3355.6,3.78925]
[1737866663867,2.02093987,3356.1,3356.0,0.59609]
[1737866664316,2.36774252,3356.1,3356.0,0.59609]
[1737866664486,2.02093987,3356.1,3356.0,0.59609]
[1737866665175,2.3677533,3356.1,3356.0,0.59609]
[1737866665471,2.02093987,3356.1,3356.0,0.59609]
[1737866666376,2.02093987,3356.1,3355.6,2.1063]